[Event "*** Titled Tuesday Blitz"]
[Site "Chess.com"]
[Date "2019.04.02"]
[Round "8"]
[White "robbykevlishvili"]
[Black "Guenplen"]
[Result "1-0"]
[WhiteElo "2867"]
[BlackElo "2917"]
[TimeControl "180+2"]
[EndTime "15:48:06 PDT"]
[Termination "robbykevlishvili won by resignation"]

1. e4 {[%clk 0:03:01.9]} 1... c5 {[%clk 0:03:00.7]} 2. Nf3 {[%clk 0:03:02.8]}
2... e6 {[%clk 0:03:02]} 3. d4 {[%clk 0:03:03.6]} 3... cxd4 {[%clk 0:03:03.9]}
4. Nxd4 {[%clk 0:03:05]} 4... Nc6 {[%clk 0:03:05]} 5. Nc3 {[%clk 0:03:06.3]}
5... a6 {[%clk 0:03:06.3]} 6. Nxc6 {[%clk 0:03:06]} 6... bxc6 {[%clk 0:03:08.2]}
7. Bd3 {[%clk 0:03:07.2]} 7... d5 {[%clk 0:03:09]} 8. Qe2 {[%clk 0:03:08.7]}
8... Nf6 {[%clk 0:03:09.6]} 9. O-O {[%clk 0:03:05.8]} 9... Be7 {[%clk
0:03:10.5]} 10. f4 {[%clk 0:03:06.9]} 10... O-O {[%clk 0:03:03.9]} 11. Bd2
{[%clk 0:03:07.9]} 11... c5 {[%clk 0:02:58.8]} 12. b3 {[%clk 0:02:39.3]} 12...
Bb7 {[%clk 0:02:44.8]} 13. e5 {[%clk 0:02:31.5]} 13... c4 {[%clk 0:02:31.6]} 14.
bxc4 {[%clk 0:02:06.7]} 14... dxc4 {[%clk 0:02:33.5]} 15. Bxc4 {[%clk
0:02:06.9]} 15... Ng4 {[%clk 0:02:29.4]} 16. Kh1 {[%clk 0:01:50.7]} 16... Bc5
{[%clk 0:02:19.9]} 17. Qxg4 {[%clk 0:01:27.1]} 17... Qxd2 {[%clk 0:02:19.9]} 18.
Na4 {[%clk 0:01:28.5]} 18... Ba7 {[%clk 0:01:48.6]} 19. Bd3 {[%clk 0:01:26.7]}
19... Bc6 {[%clk 0:01:26.7]} 20. Nb2 {[%clk 0:01:26.1]} 20... Qc3 {[%clk
0:01:09.5]} 21. Nc4 {[%clk 0:01:22.7]} 21... Bb5 {[%clk 0:01:00.1]} 22. Nd6
{[%clk 0:01:23.4]} 22... Bxd3 {[%clk 0:00:59.6]} 23. cxd3 {[%clk 0:01:25.3]}
23... Qxd3 {[%clk 0:00:55.6]} 24. f5 {[%clk 0:01:20.9]} 24... exf5 {[%clk
0:00:44.5]} 25. Nxf5 {[%clk 0:01:21.2]} 25... g6 {[%clk 0:00:44.2]} 26. Rad1
{[%clk 0:01:17]} 26... Qb5 {[%clk 0:00:20.9]} 27. Qg5 {[%clk 0:01:14.8]} 27...
Rad8 {[%clk 0:00:13]} 28. Ne7+ {[%clk 0:01:14.3]} 28... Kg7 {[%clk 0:00:12.2]}
29. Qf6+ {[%clk 0:01:16.2]} 29... Kh6 {[%clk 0:00:13.2]} 30. Nf5+ {[%clk
0:01:17.7]} 1-0

[Event "*** Titled Tuesday Blitz"]
[Site "Chess.com"]
[Date "2019.04.02"]
[Round "8"]
[White "ZeroRealtorFade"]
[Black "SlavenPastar"]
[Result "1-0"]
[WhiteElo "2271"]
[BlackElo "2417"]
[TimeControl "180+2"]
[EndTime "15:48:15 PDT"]
[Termination "ZeroRealtorFade won by checkmate"]

1. d4 {[%clk 0:03:00.4]} 1... b6 {[%clk 0:03:00.8]} 2. Bf4 {[%clk 0:03:01.5]}
2... Bb7 {[%clk 0:03:01.8]} 3. e3 {[%clk 0:03:02.3]} 3... Nf6 {[%clk 0:03:03.1]}
4. Nf3 {[%clk 0:03:03.7]} 4... e6 {[%clk 0:03:04.6]} 5. c3 {[%clk 0:03:05.1]}
5... Be7 {[%clk 0:03:05.4]} 6. Nbd2 {[%clk 0:03:06.2]} 6... O-O {[%clk
0:03:06.9]} 7. Bd3 {[%clk 0:03:07.6]} 7... a5 {[%clk 0:03:08.5]} 8. O-O {[%clk
0:03:09]} 8... Na6 {[%clk 0:03:10]} 9. e4 {[%clk 0:03:10.4]} 9... d6 {[%clk
0:03:11.4]} 10. Re1 {[%clk 0:03:11.2]} 10... c5 {[%clk 0:03:12.2]} 11. h3 {[%clk
0:03:12.2]} 11... Nc7 {[%clk 0:03:12.3]} 12. Qe2 {[%clk 0:03:11.2]} 12... b5
{[%clk 0:03:12.7]} 13. Rad1 {[%clk 0:03:10.7]} 13... b4 {[%clk 0:03:12.8]} 14.
dxc5 {[%clk 0:03:08]} 14... dxc5 {[%clk 0:03:08.5]} 15. e5 {[%clk 0:03:08.9]}
15... Nfd5 {[%clk 0:03:01]} 16. Qe4 {[%clk 0:02:49.2]} 16... g6 {[%clk
0:02:53.5]} 17. Bh6 {[%clk 0:02:50]} 17... Re8 {[%clk 0:02:41.4]} 18. c4 {[%clk
0:02:44.4]} 18... Nf4 {[%clk 0:01:31.2]} 19. Qxf4 {[%clk 0:02:37.8]} 19... Qxd3
{[%clk 0:01:26.2]} 20. Ne4 {[%clk 0:02:35.3]} 20... Qc2 {[%clk 0:01:15.5]} 21.
Nf6+ {[%clk 0:01:47]} 21... Kh8 {[%clk 0:01:10]} 22. Nxe8 {[%clk 0:00:57.3]}
22... Bxf3 {[%clk 0:01:09.1]} 23. Nxc7 {[%clk 0:00:17.7]} 23... Bxd1 {[%clk
0:01:00.3]} 24. Qxf7 {[%clk 0:00:16.1]} 24... Qf5 {[%clk 0:00:47.5]} 25. Bg7#
{[%clk 0:00:15.6]} 1-0

[Event "*** Titled Tuesday Blitz"]
[Site "Chess.com"]
[Date "2019.04.02"]
[Round "8"]
[White "chessking2151"]
[Black "DanielMieles1985"]
[Result "0-1"]
[WhiteElo "2572"]
[BlackElo "2666"]
[TimeControl "180+2"]
[EndTime "15:48:18 PDT"]
[Termination "DanielMieles1985 won by resignation"]

1. d4 {[%clk 0:03:01.9]} 1... d5 {[%clk 0:03:00.1]} 2. c4 {[%clk 0:02:55.7]}
2... c6 {[%clk 0:03:00.9]} 3. Nf3 {[%clk 0:02:56.8]} 3... Nf6 {[%clk 0:03:01.7]}
4. e3 {[%clk 0:02:57.5]} 4... a6 {[%clk 0:03:02.7]} 5. Nc3 {[%clk 0:02:57.9]}
5... e6 {[%clk 0:03:03.1]} 6. Bd3 {[%clk 0:02:55.9]} 6... dxc4 {[%clk
0:03:02.3]} 7. Bxc4 {[%clk 0:02:57.3]} 7... b5 {[%clk 0:03:03.6]} 8. Bb3 {[%clk
0:02:58.8]} 8... c5 {[%clk 0:03:03.5]} 9. O-O {[%clk 0:02:49.7]} 9... Bb7 {[%clk
0:03:02.6]} 10. Qe2 {[%clk 0:02:44.2]} 10... Nbd7 {[%clk 0:02:57.8]} 11. Rd1
{[%clk 0:02:37.9]} 11... Qc7 {[%clk 0:02:58.4]} 12. d5 {[%clk 0:02:12.4]} 12...
c4 {[%clk 0:02:57.1]} 13. dxe6 {[%clk 0:02:08.8]} 13... fxe6 {[%clk 0:02:59]}
14. Bc2 {[%clk 0:02:09.8]} 14... Bc5 {[%clk 0:02:56.4]} 15. Nd4 {[%clk
0:01:37.4]} 15... O-O {[%clk 0:02:53.9]} 16. e4 {[%clk 0:01:17.2]} 16... Rae8
{[%clk 0:02:44.1]} 17. Be3 {[%clk 0:01:16.5]} 17... Ne5 {[%clk 0:02:42.7]} 18.
h3 {[%clk 0:01:05.2]} 18... b4 {[%clk 0:02:37.3]} 19. Na4 {[%clk 0:01:04.2]}
19... Nxe4 {[%clk 0:02:31.6]} 20. Bxe4 {[%clk 0:01:01.1]} 20... Bxe4 {[%clk
0:02:32.1]} 21. Nxc5 {[%clk 0:01:02]} 21... Qxc5 {[%clk 0:02:29.6]} 22. Nxe6
{[%clk 0:00:31.1]} 22... Qc6 {[%clk 0:02:29.4]} 23. Nxf8 {[%clk 0:00:16.2]}
23... Bxg2 {[%clk 0:02:30.2]} 24. Qh5 {[%clk 0:00:15.8]} 24... Kxf8 {[%clk
0:02:03.7]} 25. Bc5+ {[%clk 0:00:06.2]} 25... Kg8 {[%clk 0:01:36.3]} 26. Rd6
{[%clk 0:00:06.6]} 26... Nf3+ {[%clk 0:01:37.2]} 27. Kxg2 {[%clk 0:00:08]} 27...
Ne1+ {[%clk 0:01:33.7]} 28. Kg3 {[%clk 0:00:06.3]} 28... Qg2+ {[%clk 0:01:34.7]}
29. Kh4 {[%clk 0:00:05.6]} 29... Re4+ {[%clk 0:01:32.4]} 30. Qg4 {[%clk
0:00:06]} 30... Nf3+ {[%clk 0:01:29.5]} 31. Kh5 {[%clk 0:00:04.6]} 31... Qxg4+
{[%clk 0:01:17.9]} 32. hxg4 {[%clk 0:00:04.1]} 32... Re5+ {[%clk 0:01:19.1]} 0-1

[Event "*** Titled Tuesday Blitz"]
[Site "Chess.com"]
[Date "2019.04.02"]
[Round "8"]
[White "Atanejhad"]
[Black "j2806"]
[Result "1-0"]
[WhiteElo "2181"]
[BlackElo "1743"]
[TimeControl "180+2"]
[EndTime "15:48:24 PDT"]
[Termination "Atanejhad won by resignation"]

1. d4 {[%clk 0:02:56.1]} 1... Nf6 {[%clk 0:02:57.5]} 2. c4 {[%clk 0:02:57.2]}
2... e6 {[%clk 0:02:45.4]} 3. Nf3 {[%clk 0:02:48.9]} 3... d5 {[%clk 0:02:45]} 4.
Nc3 {[%clk 0:02:49.1]} 4... c5 {[%clk 0:02:35.1]} 5. cxd5 {[%clk 0:02:45.4]}
5... exd5 {[%clk 0:02:35.3]} 6. g3 {[%clk 0:02:46.1]} 6... Nc6 {[%clk
0:02:28.9]} 7. Bg2 {[%clk 0:02:47]} 7... Be6 {[%clk 0:02:29.7]} 8. O-O {[%clk
0:02:47]} 8... Be7 {[%clk 0:02:29.3]} 9. Bg5 {[%clk 0:02:44.8]} 9... cxd4 {[%clk
0:02:22]} 10. Nxd4 {[%clk 0:02:45.3]} 10... Nxd4 {[%clk 0:02:18.3]} 11. Qxd4
{[%clk 0:02:45.5]} 11... O-O {[%clk 0:02:16.4]} 12. Rfd1 {[%clk 0:02:46.2]}
12... h6 {[%clk 0:02:10.5]} 13. Bf4 {[%clk 0:02:41.6]} 13... Qc8 {[%clk
0:02:01.7]} 14. Nxd5 {[%clk 0:02:37.7]} 14... Nxd5 {[%clk 0:01:47.8]} 15. Bxd5
{[%clk 0:02:38]} 15... Rd8 {[%clk 0:01:28.2]} 16. e4 {[%clk 0:02:37]} 16... Bf6
{[%clk 0:01:26.9]} 17. Be5 {[%clk 0:02:36.3]} 17... Bxe5 {[%clk 0:01:22.8]} 18.
Qxe5 {[%clk 0:02:38.2]} 18... Bxd5 {[%clk 0:01:19.7]} 19. exd5 {[%clk
0:02:37.5]} 19... Re8 {[%clk 0:01:14.4]} 20. Qf4 {[%clk 0:02:36.6]} 20... Qd7
{[%clk 0:01:12.1]} 21. Rac1 {[%clk 0:02:36.5]} 21... Rac8 {[%clk 0:01:12]} 22.
Rxc8 {[%clk 0:02:34.7]} 22... Rxc8 {[%clk 0:01:11.7]} 23. Qe4 {[%clk 0:02:33.3]}
23... Qd6 {[%clk 0:01:07.6]} 24. Rd3 {[%clk 0:02:27.8]} 24... Kh8 {[%clk
0:00:58.6]} 25. Rc3 {[%clk 0:02:28.2]} 25... Qd7 {[%clk 0:00:51.6]} 26. Kg2
{[%clk 0:02:21.3]} 26... Rxc3 {[%clk 0:00:42.7]} 27. bxc3 {[%clk 0:02:20.9]}
27... b6 {[%clk 0:00:41.3]} 28. f4 {[%clk 0:02:09.4]} 28... Kg8 {[%clk
0:00:32.6]} 29. f5 {[%clk 0:02:08.5]} 29... f6 {[%clk 0:00:26.4]} 30. Qe6+
{[%clk 0:02:09]} 30... Qf7 {[%clk 0:00:23.9]} 31. Kf3 {[%clk 0:02:08.5]} 31...
Kf8 {[%clk 0:00:23.6]} 32. Qxf7+ {[%clk 0:02:07.9]} 32... Kxf7 {[%clk
0:00:24.7]} 33. Ke4 {[%clk 0:02:05.1]} 33... Ke7 {[%clk 0:00:26]} 34. Kd4 {[%clk
0:02:04.8]} 34... Kd6 {[%clk 0:00:27.1]} 35. a4 {[%clk 0:02:01.7]} 35... a6
{[%clk 0:00:25.5]} 36. c4 {[%clk 0:02:02.3]} 36... h5 {[%clk 0:00:19.8]} 37. h3
{[%clk 0:02:02.2]} 37... a5 {[%clk 0:00:19.4]} 38. h4 {[%clk 0:02:00.6]} 38...
Kc7 {[%clk 0:00:19.2]} 39. c5 {[%clk 0:02:01.4]} 39... bxc5+ {[%clk 0:00:20.3]}
40. Kxc5 {[%clk 0:02:02.2]} 40... Kd7 {[%clk 0:00:21.6]} 41. d6 {[%clk
0:02:02.9]} 41... Kc8 {[%clk 0:00:21.4]} 42. Kc6 {[%clk 0:02:01.8]} 42... Kd8
{[%clk 0:00:22.7]} 43. d7 {[%clk 0:02:03]} 43... Ke7 {[%clk 0:00:23.6]} 1-0

[Event "*** Titled Tuesday Blitz"]
[Site "Chess.com"]
[Date "2019.04.02"]
[Round "8"]
[White "MikaelyanArman"]
[Black "NikolaN98"]
[Result "1-0"]
[WhiteElo "2744"]
[BlackElo "2525"]
[TimeControl "180+2"]
[EndTime "15:48:38 PDT"]
[Termination "MikaelyanArman won by checkmate"]

1. e4 {[%clk 0:02:56.6]} 1... c5 {[%clk 0:02:58.4]} 2. Nc3 {[%clk 0:02:57.1]}
2... g6 {[%clk 0:02:57.3]} 3. f4 {[%clk 0:02:58]} 3... Bg7 {[%clk 0:02:57.4]} 4.
Nf3 {[%clk 0:02:59.5]} 4... Nc6 {[%clk 0:02:58.5]} 5. Bb5 {[%clk 0:02:59.7]}
5... Nd4 {[%clk 0:02:58.8]} 6. O-O {[%clk 0:02:59.5]} 6... Nxb5 {[%clk
0:02:57.1]} 7. Nxb5 {[%clk 0:03:01.4]} 7... d5 {[%clk 0:02:55.1]} 8. exd5 {[%clk
0:03:01.8]} 8... a6 {[%clk 0:02:55.6]} 9. Nc3 {[%clk 0:03:02.9]} 9... Nf6 {[%clk
0:02:56.8]} 10. d4 {[%clk 0:03:04.2]} 10... Nxd5 {[%clk 0:02:57.8]} 11. Nxd5
{[%clk 0:02:51.1]} 11... Qxd5 {[%clk 0:02:57.8]} 12. Be3 {[%clk 0:02:52.5]}
12... c4 {[%clk 0:02:47.5]} 13. c3 {[%clk 0:02:51.8]} 13... Bg4 {[%clk
0:02:46.4]} 14. h3 {[%clk 0:02:50.1]} 14... Bxf3 {[%clk 0:02:41.6]} 15. Rxf3
{[%clk 0:02:52]} 15... e6 {[%clk 0:02:42]} 16. Qe1 {[%clk 0:02:50.9]} 16... h5
{[%clk 0:02:34.4]} 17. Qh4 {[%clk 0:02:51.2]} 17... Qf5 {[%clk 0:02:33.8]} 18.
Re1 {[%clk 0:02:51.3]} 18... Bf6 {[%clk 0:02:33.8]} 19. Qf2 {[%clk 0:02:52.1]}
19... O-O-O {[%clk 0:02:33.7]} 20. Bd2 {[%clk 0:02:50.4]} 20... Kb8 {[%clk
0:02:33.9]} 21. Qe2 {[%clk 0:02:48.1]} 21... Qc2 {[%clk 0:02:31.5]} 22. Rf2
{[%clk 0:02:45.7]} 22... Rc8 {[%clk 0:02:30.7]} 23. f5 {[%clk 0:02:46.1]} 23...
Ka8 {[%clk 0:02:20.2]} 24. Qf3 {[%clk 0:02:11.4]} 24... Bh4 {[%clk 0:01:26.9]}
25. g3 {[%clk 0:02:11]} 25... Bxg3 {[%clk 0:01:26.9]} 26. Qxg3 {[%clk
0:02:11.2]} 26... gxf5 {[%clk 0:01:27.6]} 27. Bg5 {[%clk 0:02:02.9]} 27... Qa4
{[%clk 0:01:26.4]} 28. h4 {[%clk 0:02:03.9]} 28... Qxa2 {[%clk 0:01:24.9]} 29.
d5 {[%clk 0:01:59.5]} 29... exd5 {[%clk 0:01:22.7]} 30. Re7 {[%clk 0:02:00.3]}
30... f6 {[%clk 0:00:24.9]} 31. Bxf6 {[%clk 0:01:56.3]} 31... Rhg8 {[%clk
0:00:26.4]} 32. Bg5 {[%clk 0:01:57.3]} 32... Rg6 {[%clk 0:00:27.1]} 33. Qe5
{[%clk 0:01:56.5]} 33... Qa4 {[%clk 0:00:12.7]} 34. Qxf5 {[%clk 0:01:55.1]}
34... Rgc6 {[%clk 0:00:11]} 35. Qxd5 {[%clk 0:01:54]} 35... Qb3 {[%clk
0:00:08.7]} 36. Be3 {[%clk 0:01:49.9]} 36... Rg6+ {[%clk 0:00:07.4]} 37. Kh2
{[%clk 0:01:49.9]} 37... Rcg8 {[%clk 0:00:07.9]} 38. Qd4 {[%clk 0:01:45.2]}
38... Kb8 {[%clk 0:00:07.7]} 39. Qa7+ {[%clk 0:01:44.9]} 39... Kc8 {[%clk
0:00:08.7]} 40. Qa8# {[%clk 0:01:46]} 1-0

[Event "*** Titled Tuesday Blitz"]
[Site "Chess.com"]
[Date "2019.04.02"]
[Round "8"]
[White "Twiceblessed"]
[Black "nutibara"]
[Result "1-0"]
[WhiteElo "2573"]
[BlackElo "2413"]
[TimeControl "180+2"]
[EndTime "15:48:41 PDT"]
[Termination "Twiceblessed won by resignation"]

1. d4 {[%clk 0:03:01.9]} 1... d5 {[%clk 0:03:00.8]} 2. c4 {[%clk 0:03:03.3]}
2... c6 {[%clk 0:03:02]} 3. cxd5 {[%clk 0:03:03.9]} 3... cxd5 {[%clk 0:03:02.4]}
4. Bg5 {[%clk 0:03:05.5]} 4... f6 {[%clk 0:03:00.8]} 5. Bd2 {[%clk 0:03:05.9]}
5... Nc6 {[%clk 0:03:00.8]} 6. Nc3 {[%clk 0:03:05]} 6... Nxd4 {[%clk 0:02:49.5]}
7. e3 {[%clk 0:03:06]} 7... Nc6 {[%clk 0:02:49.4]} 8. Qh5+ {[%clk 0:03:06.1]}
8... g6 {[%clk 0:02:46.6]} 9. Qxd5 {[%clk 0:03:06.9]} 9... Bf5 {[%clk
0:02:15.5]} 10. e4 {[%clk 0:02:58.3]} 10... Qxd5 {[%clk 0:01:45.9]} 11. Nxd5
{[%clk 0:02:58.5]} 11... O-O-O {[%clk 0:01:47.1]} 12. exf5 {[%clk 0:02:49]}
12... Rxd5 {[%clk 0:01:46.5]} 13. fxg6 {[%clk 0:02:49.9]} 13... hxg6 {[%clk
0:01:42.9]} 14. Nf3 {[%clk 0:02:49.5]} 14... e5 {[%clk 0:01:39.7]} 15. Bc4
{[%clk 0:02:49.7]} 15... Rd6 {[%clk 0:01:36.7]} 16. Be3 {[%clk 0:02:41.9]} 16...
Bh6 {[%clk 0:01:30]} 17. Bc5 {[%clk 0:02:32.3]} 17... Rd8 {[%clk 0:01:29.9]} 18.
O-O {[%clk 0:02:28.2]} 18... Nge7 {[%clk 0:01:16.5]} 19. Rfd1 {[%clk 0:02:25.3]}
19... Kc7 {[%clk 0:01:12.2]} 20. Bb3 {[%clk 0:01:44.3]} 20... Nf5 {[%clk
0:01:08.8]} 21. Rxd8 {[%clk 0:01:38.9]} 21... Rxd8 {[%clk 0:01:08.7]} 22. Rd1
{[%clk 0:01:40.3]} 22... Nfd4 {[%clk 0:00:54.6]} 23. Nxd4 {[%clk 0:01:39.8]}
23... Nxd4 {[%clk 0:00:54.3]} 24. Be7 {[%clk 0:01:38.6]} 24... Rd7 {[%clk
0:00:44.1]} 25. Bxf6 {[%clk 0:01:39.1]} 25... Nxb3 {[%clk 0:00:36.1]} 26. Bxe5+
{[%clk 0:01:36.8]} 26... Kc6 {[%clk 0:00:33.5]} 27. Rxd7 {[%clk 0:01:37.4]}
27... Kxd7 {[%clk 0:00:34.6]} 28. axb3 {[%clk 0:01:38.1]} 28... Ke6 {[%clk
0:00:28.3]} 29. f4 {[%clk 0:01:30.1]} 29... Kd5 {[%clk 0:00:26.1]} 30. Kf2
{[%clk 0:01:29.2]} 30... Ke4 {[%clk 0:00:27.1]} 31. Kg3 {[%clk 0:01:25.9]} 31...
Ke3 {[%clk 0:00:16.6]} 32. h4 {[%clk 0:01:18.5]} 32... a6 {[%clk 0:00:15]} 33.
Kg4 {[%clk 0:01:13.6]} 33... Kf2 {[%clk 0:00:13.6]} 34. h5 {[%clk 0:01:13.1]}
34... gxh5+ {[%clk 0:00:03.1]} 35. Kxh5 {[%clk 0:01:15]} 35... Bf8 {[%clk
0:00:03.1]} 36. g4 {[%clk 0:01:14.8]} 1-0

[Event "*** Titled Tuesday Blitz"]
[Site "Chess.com"]
[Date "2019.04.02"]
[Round "8"]
[White "mlchen"]
[Black "scrapnel"]
[Result "0-1"]
[WhiteElo "2393"]
[BlackElo "2520"]
[TimeControl "180+2"]
[EndTime "15:48:49 PDT"]
[Termination "scrapnel won by resignation"]

1. e4 {[%clk 0:03:01.9]} 1... g6 {[%clk 0:03:00.4]} 2. d4 {[%clk 0:03:02.7]}
2... Bg7 {[%clk 0:03:01.4]} 3. Nc3 {[%clk 0:03:03.9]} 3... d6 {[%clk 0:03:01.5]}
4. f4 {[%clk 0:03:05.4]} 4... a6 {[%clk 0:03:02.3]} 5. Nf3 {[%clk 0:03:06]} 5...
b5 {[%clk 0:03:02.5]} 6. Bd3 {[%clk 0:03:03.8]} 6... Nd7 {[%clk 0:03:00.6]} 7.
O-O {[%clk 0:03:04.1]} 7... c5 {[%clk 0:02:57.2]} 8. d5 {[%clk 0:03:03.2]} 8...
Bb7 {[%clk 0:02:45.6]} 9. Kh1 {[%clk 0:02:51.7]} 9... c4 {[%clk 0:02:40.3]} 10.
Be2 {[%clk 0:02:52.5]} 10... Nc5 {[%clk 0:02:36.4]} 11. Nd4 {[%clk 0:02:33.5]}
11... b4 {[%clk 0:02:26.2]} 12. Nb1 {[%clk 0:02:33.5]} 12... Nxe4 {[%clk
0:02:20.4]} 13. Bxc4 {[%clk 0:02:33.7]} 13... Ngf6 {[%clk 0:02:17.9]} 14. f5
{[%clk 0:02:24.5]} 14... O-O {[%clk 0:02:05.2]} 15. fxg6 {[%clk 0:02:09.3]}
15... hxg6 {[%clk 0:02:04.7]} 16. Nd2 {[%clk 0:01:56.9]} 16... Nc5 {[%clk
0:01:46.1]} 17. N2b3 {[%clk 0:01:28.5]} 17... Rc8 {[%clk 0:01:44.9]} 18. Nf3
{[%clk 0:01:21.3]} 18... Nce4 {[%clk 0:01:37.9]} 19. Qe2 {[%clk 0:01:02.8]}
19... Qc7 {[%clk 0:01:24.9]} 20. Bd3 {[%clk 0:00:34.8]} 20... Bxd5 {[%clk
0:01:25.3]} 21. Bxa6 {[%clk 0:00:35.4]} 21... Bc4 {[%clk 0:01:22]} 22. Bxc4
{[%clk 0:00:35]} 22... Qxc4 {[%clk 0:01:23.1]} 23. Qxc4 {[%clk 0:00:31.2]} 23...
Rxc4 {[%clk 0:01:23.2]} 24. Nfd2 {[%clk 0:00:23.3]} 24... Rxc2 {[%clk
0:01:22.4]} 25. Nxe4 {[%clk 0:00:20.8]} 25... Nxe4 {[%clk 0:01:23]} 26. Rb1
{[%clk 0:00:21.6]} 26... Rb8 {[%clk 0:01:08.5]} 27. Kg1 {[%clk 0:00:20.7]} 27...
f5 {[%clk 0:01:08.5]} 28. Re1 {[%clk 0:00:19.7]} 28... Kf7 {[%clk 0:01:08]} 29.
h3 {[%clk 0:00:11]} 29... Bf6 {[%clk 0:01:04.8]} 30. Rf1 {[%clk 0:00:11.2]}
30... Ra8 {[%clk 0:01:04.9]} 31. a3 {[%clk 0:00:08.5]} 31... bxa3 {[%clk
0:01:04.3]} 32. bxa3 {[%clk 0:00:09.6]} 32... Rb8 {[%clk 0:01:05.5]} 33. a4
{[%clk 0:00:08.1]} 33... Nc3 {[%clk 0:01:02.7]} 34. Rb2 {[%clk 0:00:03.3]} 34...
Ne2+ {[%clk 0:01:03]} 35. Kh1 {[%clk 0:00:03.2]} 35... Bxb2 {[%clk 0:01:03]} 0-1

[Event "*** Titled Tuesday Blitz"]
[Site "Chess.com"]
[Date "2019.04.02"]
[Round "8"]
[White "Maili15"]
[Black "novocane"]
[Result "1-0"]
[WhiteElo "2274"]
[BlackElo "2194"]
[TimeControl "180+2"]
[EndTime "15:48:54 PDT"]
[Termination "Maili15 won by resignation"]

1. d4 {[%clk 0:03:01.9]} 1... Nf6 {[%clk 0:03:00.6]} 2. c4 {[%clk 0:03:02.9]}
2... e6 {[%clk 0:03:02]} 3. Nc3 {[%clk 0:03:03.6]} 3... Bb4 {[%clk 0:03:03.6]}
4. e3 {[%clk 0:03:04.7]} 4... O-O {[%clk 0:03:03.8]} 5. Bd3 {[%clk 0:03:05.3]}
5... d5 {[%clk 0:03:01.4]} 6. Nf3 {[%clk 0:03:06]} 6... c5 {[%clk 0:02:58.1]} 7.
O-O {[%clk 0:03:01.6]} 7... cxd4 {[%clk 0:02:51.2]} 8. exd4 {[%clk 0:03:01.9]}
8... dxc4 {[%clk 0:02:52.3]} 9. Bxc4 {[%clk 0:03:03.8]} 9... b6 {[%clk
0:02:43.7]} 10. Bg5 {[%clk 0:02:59.9]} 10... Bb7 {[%clk 0:02:37.7]} 11. Ne5
{[%clk 0:02:58.6]} 11... Be7 {[%clk 0:02:36.6]} 12. Qd3 {[%clk 0:02:57.6]} 12...
Nbd7 {[%clk 0:02:34.4]} 13. Rfd1 {[%clk 0:02:41.1]} 13... Nxe5 {[%clk
0:02:25.5]} 14. dxe5 {[%clk 0:02:43]} 14... Nd5 {[%clk 0:02:24.8]} 15. Bxe7
{[%clk 0:02:33.3]} 15... Nxe7 {[%clk 0:02:25.4]} 16. Qh3 {[%clk 0:02:17.4]}
16... Qc7 {[%clk 0:02:12.7]} 17. Bd3 {[%clk 0:02:14.3]} 17... g6 {[%clk
0:02:08.7]} 18. Re1 {[%clk 0:02:00.3]} 18... Rad8 {[%clk 0:02:07.3]} 19. Rad1
{[%clk 0:01:56.4]} 19... Rd7 {[%clk 0:01:51.6]} 20. Nb5 {[%clk 0:01:54.9]} 20...
Qd8 {[%clk 0:01:43.6]} 21. Nd6 {[%clk 0:01:55.2]} 21... Bd5 {[%clk 0:01:37.7]}
22. Bb5 {[%clk 0:01:48.9]} 22... Rc7 {[%clk 0:01:26.8]} 23. Ne4 {[%clk
0:01:45.8]} 23... Bxe4 {[%clk 0:01:16.1]} 24. Rxd8 {[%clk 0:01:45.4]} 24... Rxd8
{[%clk 0:01:16.8]} 25. Rxe4 {[%clk 0:01:43.2]} 25... Rd1+ {[%clk 0:01:13.6]} 26.
Bf1 {[%clk 0:01:43.1]} 26... Rcc1 {[%clk 0:01:11.9]} 27. g4 {[%clk 0:01:40.7]}
27... g5 {[%clk 0:01:05.6]} 28. f4 {[%clk 0:01:30.5]} 28... h6 {[%clk
0:00:27.8]} 29. fxg5 {[%clk 0:01:18.6]} 29... hxg5 {[%clk 0:00:28.8]} 30. Re2
{[%clk 0:01:16.8]} 30... Ng6 {[%clk 0:00:26.5]} 31. Rf2 {[%clk 0:01:16.6]} 31...
Nf4 {[%clk 0:00:27.3]} 32. Qe3 {[%clk 0:00:47.8]} 32... Nh3+ {[%clk 0:00:23.9]}
33. Qxh3 {[%clk 0:00:47.6]} 1-0

[Event "*** Titled Tuesday Blitz"]
[Site "Chess.com"]
[Date "2019.04.02"]
[Round "8"]
[White "martinjogstad99"]
[Black "stepanosinovsky"]
[Result "0-1"]
[WhiteElo "2232"]
[BlackElo "2325"]
[TimeControl "180+2"]
[EndTime "15:48:55 PDT"]
[Termination "stepanosinovsky won by checkmate"]

1. Nf3 {[%clk 0:03:01.9]} 1... Nf6 {[%clk 0:03:00.9]} 2. e3 {[%clk 0:03:03]}
2... g6 {[%clk 0:03:02.4]} 3. d4 {[%clk 0:03:03.7]} 3... Bg7 {[%clk 0:03:04.1]}
4. c4 {[%clk 0:03:04.9]} 4... O-O {[%clk 0:03:06]} 5. Be2 {[%clk 0:03:06.2]}
5... d6 {[%clk 0:03:07.9]} 6. O-O {[%clk 0:03:07.2]} 6... Nbd7 {[%clk
0:03:09.8]} 7. Qc2 {[%clk 0:03:08.6]} 7... e5 {[%clk 0:03:11.5]} 8. Rd1 {[%clk
0:03:10.1]} 8... e4 {[%clk 0:03:11.3]} 9. Nfd2 {[%clk 0:03:10.7]} 9... Re8
{[%clk 0:03:12.7]} 10. Nc3 {[%clk 0:03:11]} 10... Qe7 {[%clk 0:03:14.1]} 11. b4
{[%clk 0:03:12]} 11... h5 {[%clk 0:03:13.9]} 12. a4 {[%clk 0:03:12.3]} 12... Nf8
{[%clk 0:03:14.7]} 13. a5 {[%clk 0:03:12.7]} 13... h4 {[%clk 0:03:08.5]} 14. h3
{[%clk 0:03:13.4]} 14... N8h7 {[%clk 0:03:06.8]} 15. a6 {[%clk 0:03:13]} 15...
b6 {[%clk 0:03:05.6]} 16. Bf1 {[%clk 0:03:11.6]} 16... Ng5 {[%clk 0:02:53.4]}
17. Ba3 {[%clk 0:03:06.5]} 17... Bxa6 {[%clk 0:02:20.9]} 18. b5 {[%clk
0:02:45.1]} 18... Bc8 {[%clk 0:02:14.1]} 19. c5 {[%clk 0:02:45.9]} 19... Bf5
{[%clk 0:01:40]} 20. Nc4 {[%clk 0:02:29]} 20... Red8 {[%clk 0:01:33.1]} 21. cxd6
{[%clk 0:01:43.1]} 21... cxd6 {[%clk 0:01:33.2]} 22. Rac1 {[%clk 0:01:39.4]}
22... Rac8 {[%clk 0:01:31.4]} 23. Qa4 {[%clk 0:01:38.2]} 23... Bf8 {[%clk
0:01:10]} 24. Na2 {[%clk 0:00:58.4]} 24... Qd7 {[%clk 0:01:03.4]} 25. Nb4 {[%clk
0:00:54.4]} 25... Bxh3 {[%clk 0:01:03.6]} 26. gxh3 {[%clk 0:00:55.4]} 26...
Nxh3+ {[%clk 0:01:04]} 27. Bxh3 {[%clk 0:00:11.5]} 27... Qxh3 {[%clk 0:01:05.9]}
28. Nd2 {[%clk 0:00:12.7]} 28... Ng4 {[%clk 0:00:53.6]} 29. Nf1 {[%clk
0:00:13.5]} 29... Qf3 {[%clk 0:00:54.7]} 30. Nd3 {[%clk 0:00:09.5]} 30... h3
{[%clk 0:00:54.9]} 31. Nf4 {[%clk 0:00:04.8]} 31... h2+ {[%clk 0:00:53.7]} 32.
Nxh2 {[%clk 0:00:05.3]} 32... Qxf2+ {[%clk 0:00:54.6]} 33. Kh1 {[%clk
0:00:06.3]} 33... Qxh2# {[%clk 0:00:56.5]} 0-1